lending/lending_fUSD_20240807
["ID","MTS","AMOUNT","RATE_DAILY","PERIOD"]
[334343901,1722995433513,-291.75930323,0.00010027,2]
[334343902,1722995433523,-147.59069677,0.00010027,2]
[334343903,1722995433535,-273.17930323,0.00010027,2]
[334343904,1722995433544,-420.77,0.00010027,2]
[334343905,1722995433554,-359.42,0.00010164,2]
[334343906,1722995433563,-352.71983949,0.00010196,2]
[334343907,1722995433572,-166.96390078,0.00010196,2]
[334343908,1722995433582,-155.51348029,0.00010196,2]
[334343909,1722995433592,-155.16114732,0.00010196,2]
[334343910,1722995433602,-10000.0,0.00010379,2]
[334343911,1722995433611,-160.977105,0.00010414,2]
[334343912,1722995433620,-952.97,0.00010451,2]
[334343913,1722995433629,-8498.84302131,0.00010482,2]
[334343914,1722995433639,-5000.0,0.00010482,2]
[334343915,1722995433649,-165.9098,0.00010677,2]
[334343917,1722995433659,-488.1162,0.00010677,2]
[334343919,1722995433668,-500.0,0.00010677,2]
[334343921,1722995433678,-1718.5949,0.000107,2]
[334343923,1722995433688,-1000.0,0.000107,2]
[334343925,1722995433697,-150.0,0.0001073,2]
[334343927,1722995433706,-150.0,0.0001073,2]
[334343929,1722995433716,-150.0,0.0001073,2]
[334343930,1722995433726,-150.0,0.00010731,2]
[334343931,1722995433735,-150.0,0.00010732,2]
[334343932,1722995433746,-150.0,0.00010732,2]
[334343933,1722995433756,-150.0,0.00010741,2]
[334343934,1722995433766,-150.0,0.00010744,2]
[334343935,1722995433775,-150.0,0.00010744,2]
[334343936,1722995433784,-150.0,0.00010745,2]
[334343937,1722995433795,-150.0,0.00010754,2]
[334343938,1722995433804,-150.0,0.00010756,2]
[334343939,1722995433814,-255.0,0.00010758,2]
[334343940,1722995433824,-319.84811814,0.00010758,2]
[334343941,1722995433834,-37869.27958319,0.00010758,2]
[334343942,1722995433844,-462.2369,0.00010758,2]
[334343943,1722995433854,-352.8253,0.00010758,2]
[334343945,1722995433863,-1322.0021,0.00010758,2]
[334343946,1722995433873,-610.3968,0.00010758,2]
[334343947,1722995433882,-1000.0,0.00010758,2]
[334343948,1722995433892,-2500.0,0.00010758,2]
[334343949,1722995433901,-150.0,0.0001076,2]
[334343950,1722995433910,-420.0,0.00010761,2]
[334343951,1722995433919,-150.0,0.00010763,2]
[334343952,1722995433929,-150.0,0.00010764,2]
[334343953,1722995433938,-150.0,0.00010766,2]
[334343954,1722995433948,-150.0,0.00010768,2]
[334343955,1722995433957,-150.0,0.00010768,2]
[334343956,1722995433967,-150.0,0.00010769,2]
[334343957,1722995433977,-150.0,0.00010769,2]
[334343958,1722995433986,-150.0,0.00010769,2]
[334343959,1722995433996,-150.0,0.00010771,2]
[334343960,1722995434006,-150.0,0.00010773,2]
[334343961,1722995434015,-319.8481181,0.00010775,2]
[334343962,1722995434024,-420.0,0.00010778,2]
[334343963,1722995434033,-150.0,0.00010781,2]
[334343964,1722995434043,-150.0,0.00010785,2]
[334343965,1722995434053,-150.0,0.00010785,2]
[334343966,1722995434063,-319.8481181,0.00010791,2]
[334343967,1722995434073,-150.0,0.00010792,2]
[334343968,1722995434083,-150.0,0.00010792,2]
[334343969,1722995434093,-150.0,0.00010795,2]
[334343970,1722995434103,-3361.604831,0.000108,2]
[334343971,1722995434115,-4678.35128544,0.000108,2]
[334343972,1722995434125,-209.04916037,0.000108,2]
[334343973,1722995434135,-150.0,0.00010802,2]
[334343974,1722995434144,-150.0,0.00010802,2]
[334343975,1722995434154,-150.0,0.00010804,2]
[334343976,1722995434164,-355.87885282,0.00010808,2]
[334343977,1722995434174,-319.8481181,0.00010808,2]
[334343978,1722995434183,-150.0,0.00010809,2]
[334343979,1722995434194,-150.0,0.00010809,2]
[334343980,1722995434203,-209.04916034,0.00010815,2]
[334343981,1722995434213,-150.0,0.00010815,2]
[334343982,1722995434223,-150.0,0.00010816,2]
[334343983,1722995434233,-150.0,0.00010821,2]
[334343984,1722995434243,-150.0,0.00010823,2]
[334343985,1722995434252,-150.0,0.00010824,2]
[334343986,1722995434262,-150.0,0.00010826,2]
[334343987,1722995434271,-150.0,0.00010828,2]
[334343988,1722995434281,-150.0,0.00010828,2]
[334343989,1722995434291,-150.0,0.00010829,2]
[334343990,1722995434301,-209.04916034,0.00010829,2]
[334343991,1722995434311,-150.0,0.0001083,2]
[334343992,1722995434321,-355.87885282,0.00010833,2]
[334343993,1722995434330,-150.0,0.00010834,2]
[334343994,1722995434339,-150.0,0.0001084,2]
[334343995,1722995434349,-209.04916034,0.00010844,2]
[334343996,1722995434358,-150.0,0.00010846,2]
[334343997,1722995434367,-150.0,0.00010846,2]
[334343998,1722995434377,-150.0,0.00010846,2]
[334343999,1722995434386,-150.0,0.00010847,2]
[334344000,1722995434396,-150.0,0.00010852,2]
[334344001,1722995434405,-150.0,0.00010853,2]
[334344002,1722995434415,-150.0,0.00010857,2]
[334344003,1722995434425,-1070.26488481,0.00010858,2]
[334344004,1722995434434,-177.30359133,0.00010858,2]
[334344005,1722995434444,-355.87885282,0.00010858,2]
[334344006,1722995434453,-150.0,0.00010858,2]
[334344007,1722995434463,-2401.85383087,0.00010858,2]
[334344008,1722995434473,-629.13336017,0.00010858,2]
[334344009,1722995434482,-209.04916034,0.00010858,2]
[334344010,1722995434492,-324.25351371,0.00010858,2]
[334344011,1722995434501,-1295.74916249,0.00010858,2]
[334344012,1722995434511,-39131.878,0.00010858,2]
[334344013,1722995434521,-11924.8072,0.00010858,2]
[334344014,1722995434531,-125507.378,0.00010858,2]
[334344015,1722995434540,-111122.51417316,0.00010858,2]
[334344016,1722995434553,-6434.28032684,0.00010858,2]
[334344017,1722995434563,-175.71967313,0.00010858,2]
[334344018,1722995434575,-364.72789729,0.00010858,2]
[334344019,1722995434586,-450.11789781,0.00010858,2]
[334344020,1722995434666,-23375.27870116,0.00010858,2]
[334344021,1722995434677,-24815.7910607,0.00010858,2]
[334344022,1722995434689,-2631.1,0.00010858,2]
[334344024,1722995438628,-303.15,9.725e-05,2]
[334344025,1722995438638,-150.0,0.00010773,2]
[334344026,1722995438647,-319.8481181,0.00010825,2]
[334344027,1722995438657,-30.76140514,0.00010858,2]
[334344029,1722995438669,-284.42893557,0.00010858,2]
[334344030,1722995438681,-383.4,0.00010858,2]
[334344031,1722995438693,-10864.277,0.00010858,2]
[334344032,1722995438704,-5231.0,0.00010858,2]
[334344033,1722995438716,-19078.5,0.00010858,2]
[334344034,1722995438866,-6744.71599401,0.00010858,2]
[334344035,1722995438879,-5570.18143519,0.00010858,2]
[334344036,1722995438894,-7611.6575,0.00010858,2]
[334344037,1722995438904,-1000.0,0.00010858,2]
[334344038,1722995438913,-1211.5372,0.00010858,2]
[334344039,1722995438924,-150.0,0.00010862,2]
[334344040,1722995438934,-150.0,0.00010862,2]
[334344041,1722995438945,-150.0,0.00010863,2]
[334344042,1722995438955,-150.0,0.00010869,2]
[334344043,1722995438965,-200.0,0.00010873,2]
[334344044,1722995438975,-199.83731152,0.00010873,2]
[334344045,1722995438984,-200.0,0.00010873,2]
[334344046,1722995438995,-1414.0,0.00010877,2]
[334344047,1722995439004,-150.0,0.0001088,2]
[334344048,1722995439014,-150.0,0.00010883,2]
[334344049,1722995439024,-150.0,0.00010885,2]
[334344050,1722995439035,-150.0,0.00010887,2]
[334344051,1722995439045,-150.0,0.00010894,2]
[334344052,1722995439055,-150.0,0.00010895,2]
[334344053,1722995439081,-1321.87997801,0.00010897,2]
[334344054,1722995439091,-53047.18419989,0.000109,2]
[334344057,1722995439105,-639311.32009602,0.000109,2]
[334344059,1722995439116,-1347.90891,0.000109,2]
[334344061,1722995439126,-151.84,0.000109,2]
[334344063,1722995439136,-151.84,0.000109,2]
[334344065,1722995439146,-151.84,0.000109,2]
[334344067,1722995439156,-151.84,0.000109,2]
[334344069,1722995439166,-151.84,0.000109,2]
[334344071,1722995439177,-151.84,0.000109,2]
[334344073,1722995439187,-151.84,0.000109,2]
[334344075,1722995439197,-150.0,0.00010901,2]
[334344077,1722995439207,-150.0,0.0001091,2]
[334344079,1722995439217,-150.0,0.00010913,2]
[334344081,1722995439226,-150.0,0.00010913,2]
[334344083,1722995439236,-150.0,0.00010915,2]
[334344085,1722995439247,-150.0,0.00010916,2]
[334344087,1722995439257,-150.0,0.00010918,2]
[334344090,1722995439268,-150.0,0.0001092,2]
[334344092,1722995439277,-150.0,0.00010921,2]
[334344094,1722995439287,-150.0,0.00010922,2]
[334344096,1722995439297,-150.0,0.00010928,2]
[334344098,1722995439307,-150.0,0.00010931,2]
[334344100,1722995439316,-303.15,0.00010941,2]
[334344102,1722995439326,-151.84,0.00010941,2]
[334344104,1722995439336,-150.0,0.00010943,2]
[334344106,1722995439345,-150.0,0.00010943,2]
[334344108,1722995439355,-150.0,0.00010943,2]
[334344110,1722995439364,-150.0,0.00010944,2]
[334344112,1722995439374,-150.0,0.00010948,2]
[334344114,1722995439384,-151.84,0.00010948,2]
[334344116,1722995439393,-151.84,0.00010948,2]
[334344118,1722995439403,-1321.87997801,0.00010948,2]
[334344120,1722995439413,-150.0,0.00010949,2]
[334344122,1722995439423,-150.0,0.00010949,2]
[334344124,1722995439433,-78551.1252641,0.00010951,2]
[334344126,1722995439443,-6415.3527896,0.00010951,2]
[334344128,1722995439453,-14267.3613682,0.00010951,2]
[334344130,1722995439463,-227.16591288,0.00010951,2]
[334344132,1722995439472,-2698.375858,0.00010951,2]
[334344134,1722995439482,-9253.15984607,0.00010955,2]
[334344136,1722995439491,-8894.41442218,0.00010957,2]
[334344138,1722995439501,-150.0,0.00010957,2]
[334344140,1722995439511,-500.0,0.00010958,2]
[334344142,1722995439520,-500.0,0.00010958,2]
[334344144,1722995439530,-500.0,0.00010958,2]
[334344146,1722995439540,-500.0,0.00010958,2]
[334344148,1722995439549,-500.0,0.00010958,2]
[334344150,1722995439559,-500.0,0.00010958,2]
[334344152,1722995439586,-500.0,0.00010958,2]
[334344154,1722995439596,-500.0,0.00010958,2]
[334344156,1722995439606,-500.0,0.00010958,2]
[334344158,1722995439616,-500.0,0.00010958,2]
[334344160,1722995439627,-500.0,0.00010958,2]
[334344162,1722995439636,-500.0,0.00010958,2]
[334344165,1722995439647,-500.0,0.00010958,2]
[334344167,1722995439658,-490.96806687,0.00010958,2]
[334344169,1722995439667,-500.0,0.00010958,2]
[334344171,1722995439678,-514.28418093,0.00010958,2]
[334344173,1722995439687,-500.0,0.00010958,2]
[334344175,1722995439697,-500.0,0.00010958,2]
[334344177,1722995439706,-512.24614967,0.00010958,2]
[334344179,1722995439716,-451.09497324,0.00010958,2]
[334344181,1722995439726,-326.46040781,0.00010958,2]
[334344183,1722995439735,-309.05351461,0.00010958,2]
[334344185,1722995439745,-500.0,0.00010958,2]
[334344187,1722995439755,-500.0,0.00010958,2]
[334344189,1722995439765,-406.6322259,0.00010958,2]
[334344192,1722995439774,-500.0,0.00010958,2]
[334344194,1722995439784,-500.0,0.00010958,2]
[334344196,1722995439793,-500.0,0.00010958,2]
[334344198,1722995439803,-500.0,0.00010958,2]
[334344200,1722995439812,-229.01263654,0.00010958,2]
[334344202,1722995439822,-500.0,0.00010958,2]
[334344204,1722995439831,-500.0,0.00010958,2]
[334344206,1722995439840,-500.0,0.00010958,2]
[334344208,1722995439850,-500.0,0.00010958,2]
[334344210,1722995439859,-500.0,0.00010958,2]
[334344212,1722995439869,-500.0,0.00010958,2]
[334344214,1722995439879,-391.01166946,0.00010958,2]
[334344216,1722995439890,-500.0,0.00010958,2]
[334344218,1722995439900,-500.0,0.00010958,2]
[334344220,1722995439910,-500.0,0.00010958,2]
[334344222,1722995439920,-500.0,0.00010958,2]
[334344224,1722995439929,-500.0,0.00010958,2]
[334344226,1722995439939,-500.0,0.00010958,2]
[334344228,1722995439948,-500.0,0.00010958,2]
[334344230,1722995439958,-500.0,0.00010958,2]
[334344232,1722995439967,-501.32562318,0.00010958,2]
[334344234,1722995439977,-500.90513066,0.00010958,2]
[334344236,1722995439986,-500.0,0.00010958,2]
[334344238,1722995439996,-500.0,0.00010958,2]
[334344240,1722995440006,-503.65123317,0.00010958,2]
[334344242,1722995440016,-500.0,0.00010958,2]
[334344244,1722995440026,-500.0,0.00010958,2]
[334344246,1722995440036,-500.0,0.00010958,2]
[334344248,1722995440045,-501.52912835,0.00010958,2]
[334344251,1722995440055,-502.37996302,0.00010958,2]
[334344252,1722995440070,-301.12449721,0.00010958,2]
[334344255,1722995440091,-500.0,0.00010958,2]
[334344257,1722995440102,-500.0,0.00010958,2]
[334344259,1722995440112,-500.0,0.00010958,2]
[334344261,1722995440124,-500.0,0.00010958,2]
[334344263,1722995440134,-505.48712818,0.00010958,2]
[334344265,1722995440145,-500.0,0.00010958,2]
[334344267,1722995440155,-500.0,0.00010958,2]
[334344269,1722995440165,-1806.95,0.00010958,2]
[334344271,1722995440174,-500.0,0.00010958,2]
[334344273,1722995440185,-1806.95,0.00010958,2]
[334344275,1722995440196,-500.0,0.00010958,2]
[334344278,1722995440206,-1806.95,0.00010958,2]
[334344280,1722995440216,-501.41683896,0.00010958,2]
[334344282,1722995440225,-1806.95,0.00010958,2]
[334344284,1722995440235,-1806.95,0.00010958,2]
[334344286,1722995440244,-1806.95,0.00010958,2]
[334344288,1722995440254,-1806.95,0.00010958,2]
[334344290,1722995440263,-1806.95,0.00010958,2]
[334344292,1722995440273,-1806.95,0.00010958,2]
[334344294,1722995440284,-1806.95,0.00010958,2]
[334344296,1722995440294,-1806.95,0.00010958,2]
[334344297,1722995440303,-500.21907684,0.00010958,2]
[334344298,1722995440313,-1806.95,0.00010958,2]
[334344299,1722995440323,-1806.95,0.00010958,2]
[334344300,1722995440332,-1806.95,0.00010958,2]
[334344301,1722995440341,-1806.95,0.00010958,2]
[334344302,1722995440351,-1806.95,0.00010958,2]
[334344303,1722995440360,-1806.95,0.00010958,2]
[334344304,1722995440369,-1806.95,0.00010958,2]
[334344305,1722995440379,-1806.95,0.00010958,2]
[334344306,1722995440388,-1806.95,0.00010958,2]
[334344307,1722995440401,-500.0,0.00010958,2]
[334344308,1722995440413,-1806.95,0.00010958,2]
[334344309,1722995440424,-500.0,0.00010958,2]
[334344310,1722995440435,-1806.95,0.00010958,2]
[334344311,1722995440446,-500.0,0.00010958,2]
[334344314,1722995440456,-1806.95,0.00010958,2]
[334344316,1722995440467,-500.0,0.00010958,2]
[334344318,1722995440479,-1807.18890784,0.00010958,2]
[334344319,1722995440489,-500.0,0.00010958,2]
[334344320,1722995440499,-500.0,0.00010958,2]
[334344321,1722995440510,-501.32610856,0.00010958,2]
[334344322,1722995440613,-500.0,0.00010958,2]
[334344323,1722995440622,-500.0,0.00010958,2]
[334344324,1722995440632,-500.0,0.00010958,2]
[334344325,1722995440641,-500.0,0.00010958,2]
[334344326,1722995440650,-500.0,0.00010958,2]
[334344327,1722995440659,-500.0,0.00010958,2]
[334344328,1722995440669,-500.0,0.00010958,2]
[334344329,1722995440678,-500.0,0.00010958,2]
[334344330,1722995440687,-500.0,0.00010958,2]
[334344331,1722995440696,-500.0,0.00010958,2]
[334344332,1722995440705,-500.0,0.00010958,2]
[334344333,1722995440714,-500.0,0.00010958,2]
[334344334,1722995440724,-500.0,0.00010958,2]
[334344335,1722995440733,-500.0,0.00010958,2]
[334344336,1722995440742,-500.0,0.00010958,2]
[334344337,1722995440752,-500.0,0.00010958,2]
[334344338,1722995440761,-500.0,0.00010958,2]
[334344339,1722995440771,-500.0,0.00010958,2]
[334344340,1722995440782,-500.0,0.00010958,2]
[334344341,1722995440791,-500.0,0.00010958,2]
[334344342,1722995440800,-322.24189175,0.00010958,2]
[334344343,1722995440809,-500.0,0.00010958,2]
[334344344,1722995440819,-500.0,0.00010958,2]
[334344345,1722995440828,-500.0,0.00010958,2]
[334344347,1722995440838,-500.0,0.00010958,2]
[334344349,1722995440847,-500.0,0.00010958,2]
[334344351,1722995440856,-500.0,0.00010958,2]
[334344352,1722995440865,-500.0,0.00010958,2]
[334344353,1722995440874,-507.79393522,0.00010958,2]
[334344354,1722995440883,-500.0,0.00010958,2]
[334344355,1722995440892,-500.0,0.00010958,2]
[334344356,1722995440901,-500.0,0.00010958,2]
[334344357,1722995440910,-500.0,0.00010958,2]
[334344358,1722995440920,-500.0,0.00010958,2]
[334344359,1722995440929,-500.0,0.00010958,2]
[334344360,1722995440938,-500.0,0.00010958,2]
[334344362,1722995440947,-500.0,0.00010958,2]
[334344363,1722995440956,-500.0,0.00010958,2]
[334344365,1722995440966,-500.0,0.00010958,2]
[334344367,1722995440975,-500.0,0.00010958,2]
[334344368,1722995440985,-500.0,0.00010958,2]
[334344369,1722995440994,-500.0,0.00010958,2]
[334344370,1722995441003,-500.0,0.00010958,2]
[334344371,1722995441012,-500.0,0.00010958,2]
[334344372,1722995441021,-500.0,0.00010958,2]
[334344373,1722995441031,-500.0,0.00010958,2]
[334344374,1722995441040,-506.14023449,0.00010958,2]
[334344375,1722995441049,-500.0,0.00010958,2]
[334344376,1722995441058,-390.4843577,0.00010958,2]
[334344377,1722995441073,-500.0,0.00010958,2]
[334344378,1722995441093,-500.0,0.00010958,2]
[334344379,1722995441104,-503.02095304,0.00010958,2]
[334344380,1722995441113,-711.05,0.00010958,2]
[334344381,1722995441125,-711.05,0.00010958,2]
[334344382,1722995441135,-711.05,0.00010958,2]
[334344383,1722995441144,-711.05,0.00010958,2]
[334344384,1722995441154,-500.0,0.00010958,2]
[334344385,1722995441163,-711.05,0.00010958,2]
[334344386,1722995441173,-500.0,0.00010958,2]
[334344387,1722995441182,-711.05,0.00010958,2]
[334344388,1722995441193,-618.16134204,0.00010958,2]
[334344389,1722995441202,-711.05,0.00010958,2]
[334344390,1722995441211,-711.05,0.00010958,2]
[334344391,1722995441220,-711.05,0.00010958,2]
[334344392,1722995441229,-711.05,0.00010958,2]
[334344393,1722995441238,-711.05,0.00010958,2]
[334344394,1722995441248,-711.05,0.00010958,2]
[334344395,1722995441257,-711.05,0.00010958,2]
[334344396,1722995441267,-711.05,0.00010958,2]
[334344397,1722995441277,-711.05,0.00010958,2]
[334344398,1722995441286,-711.05,0.00010958,2]
[334344399,1722995441296,-341.21927907,0.00010958,2]
[334344400,1722995441306,-711.05,0.00010958,2]
[334344401,1722995441315,-711.05,0.00010958,2]
[334344402,1722995441324,-711.05,0.00010958,2]
[334344403,1722995441333,-711.05,0.00010958,2]
[334344404,1722995441343,-500.0,0.00010958,2]
[334344405,1722995441352,-711.05,0.00010958,2]
[334344406,1722995441361,-500.0,0.00010958,2]
[334344407,1722995441371,-711.05,0.00010958,2]
[334344408,1722995441380,-500.0,0.00010958,2]
[334344409,1722995441390,-500.0,0.00010958,2]
[334344410,1722995441399,-711.05,0.00010958,2]
[334344411,1722995441408,-500.0,0.00010958,2]
[334344412,1722995441418,-711.20496115,0.00010958,2]
[334344413,1722995441427,-500.0,0.00010958,2]
[334344414,1722995441436,-504.55829707,0.00010958,2]
[334344415,1722995441446,-568.09,0.00010958,2]
[334344416,1722995441455,-568.09,0.00010958,2]
[334344417,1722995441464,-568.09,0.00010958,2]
[334344418,1722995441473,-568.09,0.00010958,2]
[334344419,1722995441482,-500.0,0.00010958,2]
[334344420,1722995441491,-568.09,0.00010958,2]
[334344421,1722995441500,-500.0,0.00010958,2]
[334344422,1722995441510,-568.09,0.00010958,2]
[334344423,1722995441519,-500.0,0.00010958,2]
[334344424,1722995441528,-568.09,0.00010958,2]
[334344425,1722995441538,-500.0,0.00010958,2]
[334344426,1722995441547,-568.09,0.00010958,2]
[334344427,1722995441555,-476.31565377,0.00010958,2]
[334344428,1722995441565,-568.09,0.00010958,2]
[334344429,1722995441591,-568.09,0.00010958,2]
[334344430,1722995441601,-568.09,0.00010958,2]
[334344431,1722995441610,-568.09,0.00010958,2]
[334344432,1722995441618,-568.09,0.00010958,2]
[334344433,1722995441627,-568.09,0.00010958,2]
[334344434,1722995441636,-568.09,0.00010958,2]
[334344435,1722995441645,-568.09,0.00010958,2]
[334344436,1722995441654,-568.09,0.00010958,2]
[334344437,1722995441662,-568.09,0.00010958,2]
[334344438,1722995441672,-568.09,0.00010958,2]
[334344439,1722995441681,-568.09,0.00010958,2]
[334344440,1722995441690,-568.09,0.00010958,2]
[334344441,1722995441699,-568.09,0.00010958,2]
[334344442,1722995441708,-568.09,0.00010958,2]
[334344443,1722995441717,-568.13718679,0.00010958,2]
[334344444,1722995441726,-161.21217387,0.00010958,2]
[334344445,1722995441735,-500.0,0.00010958,2]
[334344446,1722995441744,-500.0,0.00010958,2]
[334344447,1722995441753,-500.0,0.00010958,2]
[334344448,1722995441762,-500.0,0.00010958,2]
[334344449,1722995441771,-500.0,0.00010958,2]
[334344450,1722995441781,-500.0,0.00010958,2]
[334344451,1722995441790,-500.0,0.00010958,2]
[334344452,1722995441799,-967.22,0.00010958,2]
[334344453,1722995441808,-967.22,0.00010958,2]
[334344454,1722995441817,-967.22,0.00010958,2]
[334344455,1722995441827,-500.0,0.00010958,2]
[334344456,1722995441836,-967.22,0.00010958,2]
[334344457,1722995441845,-263.29160348,0.00010958,2]
[334344458,1722995441854,-967.22,0.00010958,2]
[334344459,1722995441864,-967.22,0.00010958,2]
[334344460,1722995441872,-967.22,0.00010958,2]
[334344461,1722995441882,-967.22,0.00010958,2]
[334344462,1722995441891,-967.22,0.00010958,2]
[334344463,1722995441900,-967.22,0.00010958,2]
[334344464,1722995441909,-967.22,0.00010958,2]
[334344465,1722995441918,-967.22,0.00010958,2]
[334344466,1722995441927,-967.22,0.00010958,2]
[334344467,1722995441936,-967.22,0.00010958,2]
[334344468,1722995441945,-967.22,0.00010958,2]
[334344469,1722995441954,-967.22,0.00010958,2]
[334344470,1722995441963,-967.22,0.00010958,2]
[334344471,1722995441972,-967.22,0.00010958,2]
[334344472,1722995441981,-967.22,0.00010958,2]
[334344473,1722995441991,-967.22,0.00010958,2]
[334344474,1722995442000,-967.22,0.00010958,2]
[334344475,1722995442009,-967.22,0.00010958,2]
[334344476,1722995442018,-967.22,0.00010958,2]
[334344477,1722995442028,-967.45088469,0.00010958,2]
[334344478,1722995442038,-500.0,0.00010958,2]
[334344479,1722995442048,-500.0,0.00010958,2]
[334344480,1722995442058,-501.9960295,0.00010958,2]
[334344481,1722995442068,-500.0,0.00010958,2]
[334344482,1722995442095,-500.0,0.00010958,2]
[334344483,1722995442110,-500.0,0.00010958,2]
[334344484,1722995442119,-500.0,0.00010958,2]
[334344485,1722995442129,-500.0,0.00010958,2]
[334344486,1722995442138,-500.0,0.00010958,2]
[334344487,1722995442148,-500.0,0.00010958,2]
[334344488,1722995442157,-1542.94,0.00010958,2]
[334344489,1722995442167,-500.0,0.00010958,2]
[334344490,1722995442176,-1542.94,0.00010958,2]
[334344491,1722995442186,-1542.94,0.00010958,2]
[334344492,1722995442198,-646.66050793,0.00010958,2]
[334344493,1722995442207,-500.0,0.00010958,2]
[334344494,1722995442216,-1542.94,0.00010958,2]
[334344495,1722995442226,-500.0,0.00010958,2]
[334344496,1722995442235,-1542.94,0.00010958,2]
[334344497,1722995442245,-500.0,0.00010958,2]
[334344498,1722995442255,-1542.94,0.00010958,2]
[334344499,1722995442265,-830.81,0.00010958,2]
[334344500,1722995442274,-192.47151417,0.00010958,2]
[334344501,1722995442284,-1542.94,0.00010958,2]
[334344502,1722995442294,-830.81,0.00010958,2]
[334344503,1722995442303,-1542.94,0.00010958,2]
[334344504,1722995442313,-830.81,0.00010958,2]
[334344505,1722995442322,-1542.94,0.00010958,2]
[334344506,1722995442332,-830.81,0.00010958,2]
[334344507,1722995442341,-1542.94,0.00010958,2]
[334344508,1722995442351,-2189.09,0.00010958,2]
[334344509,1722995442361,-1542.94,0.00010958,2]
[334344510,1722995442370,-830.81,0.00010958,2]
[334344511,1722995442379,-2189.09,0.00010958,2]
[334344512,1722995442389,-830.81,0.00010958,2]
[334344513,1722995442398,-2189.09,0.00010958,2]
[334344514,1722995442408,-1542.94,0.00010958,2]
[334344515,1722995442417,-830.81,0.00010958,2]
[334344516,1722995442427,-1542.94,0.00010958,2]
[334344517,1722995442437,-2189.09,0.00010958,2]
[334344518,1722995442446,-830.81,0.00010958,2]
[334344519,1722995442455,-1542.94,0.00010958,2]
[334344520,1722995442464,-2189.09,0.00010958,2]
[334344521,1722995442475,-830.81,0.00010958,2]
[334344522,1722995442484,-1542.94,0.00010958,2]
[334344523,1722995442494,-2189.09,0.00010958,2]
[334344524,1722995442503,-830.81,0.00010958,2]
[334344525,1722995442512,-1542.94,0.00010958,2]
[334344526,1722995442521,-500.0,0.00010958,2]
[334344527,1722995442531,-2189.09,0.00010958,2]
[334344528,1722995442540,-830.81,0.00010958,2]
[334344529,1722995442550,-1542.94,0.00010958,2]
[334344530,1722995442559,-2189.09,0.00010958,2]
[334344531,1722995442568,-1542.94,0.00010958,2]
[334344532,1722995442585,-830.81,0.00010958,2]
[334344533,1722995442595,-2189.09,0.00010958,2]
[334344534,1722995442604,-1542.94,0.00010958,2]
[334344535,1722995442618,-830.81,0.00010958,2]
[334344536,1722995442628,-2189.09,0.00010958,2]
[334344537,1722995442637,-830.81,0.00010958,2]
[334344538,1722995442646,-1542.94,0.00010958,2]
[334344539,1722995442655,-2189.09,0.00010958,2]
[334344540,1722995442665,-1542.94,0.00010958,2]
[334344541,1722995442674,-2189.09,0.00010958,2]
[334344542,1722995442683,-1542.94,0.00010958,2]
[334344543,1722995442693,-830.81,0.00010958,2]
[334344545,1722995442702,-2189.09,0.00010958,2]